bitfinex/quotes_BTCUSD_20250206
["timestamp","ask_amount","ask_price","bid_price","bid_amount"]
[1738825043082,2.11134495,98462.0,98461.0,0.00122428]
[1738825046021,0.61134495,98462.0,98461.0,0.00122428]
[1738825046521,2.11134495,98462.0,98461.0,0.00122428]
[1738825047229,2.03294495,98462.0,98461.0,0.00122428]
[1738825053309,2.07695685,98462.0,98461.0,0.00122428]
[1738825053907,2.03294495,98462.0,98461.0,0.00122428]
[1738825055449,2.11344495,98462.0,98461.0,0.00122428]
[1738825059560,0.61344495,98462.0,98461.0,0.00122428]
[1738825060056,2.11344495,98462.0,98461.0,0.00122428]
[1738825060944,2.03294495,98462.0,98461.0,0.00122428]
[1738825063887,1.98664495,98462.0,98461.0,0.00122428]
[1738825064658,1.97916495,98462.0,98461.0,0.00122428]
[1738825064871,1.98664495,98462.0,98461.0,0.00122428]
[1738825081251,1.97916495,98462.0,98461.0,0.00122428]
[1738825081451,0.48660495,98462.0,98461.0,0.00122428]
[1738825085660,1.98660495,98462.0,98461.0,0.00122428]
[1738825086094,0.32682195,98462.0,98461.0,0.00122428]
[1738825086309,0.22682195,98462.0,98461.0,0.00122428]
[1738825086523,0.23426195,98462.0,98461.0,0.12502428]
[1738825086737,0.22682195,98462.0,98461.0,0.14388724]
[1738825086949,0.0243183,98462.0,98461.0,1.15608724]
[1738825087377,0.018,98462.0,98461.0,1.17908724]
[1738825087793,0.1,98476.0,98475.0,0.152322]
[1738825088022,0.1,98476.0,98475.0,0.229422]
[1738825088023,0.20250365,98476.0,98475.0,0.229422]
[1738825089065,0.21150365,98476.0,98475.0,0.229422]
[1738825090270,0.21150365,98476.0,98475.0,0.549722]
[1738825090506,0.12050365,98476.0,98475.0,0.549722]
[1738825092094,0.12050365,98476.0,98475.0,0.599222]
[1738825093887,0.12677503,98476.0,98475.0,0.599222]
[1738825094124,0.11777503,98476.0,98475.0,0.599222]
[1738825094513,0.11150365,98476.0,98475.0,0.599222]
[1738825094715,0.12050365,98476.0,98475.0,0.599222]
[1738825096178,0.12050365,98476.0,98475.0,1.141122]
[1738825098017,0.12050365,98476.0,98475.0,1.15989969]
[1738825099112,0.12050365,98476.0,98475.0,1.141122]
[1738825099313,0.12050365,98476.0,98475.0,0.9393]
[1738825099675,0.12679099,98476.0,98475.0,0.9393]
[1738825102097,0.12050365,98476.0,98475.0,0.3974]
[1738825103940,0.12680313,98476.0,98475.0,0.3974]
[1738825104725,0.12050365,98476.0,98475.0,0.3974]
[1738825105353,0.12680313,98476.0,98475.0,0.3974]
[1738825105554,0.12680313,98476.0,98475.0,0.3203]
[1738825108344,0.12680313,98476.0,98475.0,0.32052407]
[1738825110953,0.12050365,98476.0,98475.0,0.32052407]
[1738825111358,0.12679457,98476.0,98475.0,0.33931939]
[1738825112187,0.12050365,98476.0,98475.0,0.33931939]
[1738825115111,0.12679457,98476.0,98475.0,0.33931939]
[1738825116270,1.62679457,98476.0,98475.0,0.33931939]
[1738825118303,1.62679457,98476.0,98475.0,0.32052407]
[1738825119980,1.62679457,98476.0,98475.0,0.00022407]
[1738825122017,1.69099596,98476.0,98475.0,0.00022407]
[1738825122163,1.62679457,98476.0,98475.0,0.00022407]
[1738825123222,0.12679457,98476.0,98475.0,0.00022407]
[1738825126483,0.12679457,98476.0,98475.0,0.01905591]
[1738825126906,0.12050365,98476.0,98475.0,0.01905591]
[1738825127097,0.12050365,98476.0,98475.0,0.42185591]
[1738825127299,0.018,98476.0,98475.0,0.44260414]
[1738825127501,0.018,98476.0,98475.0,0.43195758]
[1738825128259,0.009,98476.0,98475.0,0.4997025]
[1738825128394,0.0001068,98491.0,98488.0,0.152302]
[1738825128597,0.10261035,98489.0,98488.0,0.472602]
[1738825129352,0.10261035,98489.0,98488.0,0.55917876]
[1738825129762,0.11161035,98489.0,98488.0,0.56017876]
[1738825130396,0.22061035,98489.0,98488.0,0.56117876]
[1738825130604,0.24390273,98489.0,98488.0,0.40887676]
[1738825130818,0.22826007,98489.0,98488.0,0.40887676]
[1738825131032,0.22826007,98489.0,98488.0,0.08857676]
[1738825131243,1.72826007,98489.0,98488.0,0.08857676]
[1738825131674,1.83076372,98489.0,98488.0,0.002]
[1738825131882,1.82176372,98489.0,98488.0,0.001]
[1738825132131,1.88056107,98489.0,98488.0,0.002]
[1738825132541,1.88056107,98489.0,98488.0,0.001]
[1738825132752,0.252321,98476.0,98475.0,0.00022407]
[1738825132961,0.20250365,98476.0,98475.0,0.00022407]
[1738825133161,0.21015327,98476.0,98475.0,0.00022407]
[1738825133984,0.21915327,98476.0,98475.0,0.00022407]
[1738825134953,0.22715327,98476.0,98475.0,0.00022407]
[1738825135936,0.23499327,98476.0,98475.0,0.00022407]
[1738825138005,0.22715327,98476.0,98475.0,0.00022407]
[1738825138207,0.23503327,98476.0,98475.0,0.00022407]
[1738825139021,0.23503327,98476.0,98475.0,0.01903996]
[1738825139218,0.22738365,98476.0,98475.0,0.01903996]
[1738825139530,0.23503326,98476.0,98475.0,0.01903996]
[1738825140126,0.23503326,98476.0,98475.0,0.00022407]
[1738825140700,0.38735426,98476.0,98475.0,0.00022407]
[1738825141859,0.44639879,98476.0,98475.0,0.00022407]
[1738825142102,0.23499326,98476.0,98475.0,0.00022407]
[1738825142852,0.22715326,98476.0,98475.0,0.00022407]
[1738825143058,0.23503326,98476.0,98475.0,0.00022407]
[1738825144928,0.23503326,98476.0,98475.0,0.15254607]
[1738825145150,0.23503326,98476.0,98475.0,0.00022407]
[1738825145369,0.22738365,98476.0,98475.0,0.00022407]
[1738825145629,0.23482351,98476.0,98475.0,0.00022407]
[1738825149092,1.73482351,98476.0,98475.0,0.00022407]
[1738825150252,1.75318965,98476.0,98475.0,0.00022407]
[1738825150452,1.73482351,98476.0,98475.0,0.00022407]
[1738825152033,1.73486351,98476.0,98475.0,0.00022407]
[1738825155562,1.81796351,98476.0,98475.0,0.00022407]
[1738825155765,2.02536351,98476.0,98475.0,0.00022407]
[1738825155974,2.05705081,98476.0,98475.0,0.00022407]
[1738825156180,2.15055446,98476.0,98475.0,0.00022407]
[1738825156389,2.16314443,98476.0,98475.0,0.00022407]
[1738825156592,2.17214443,98476.0,98475.0,0.00022407]
[1738825157251,2.17356893,98476.0,98475.0,0.00022407]
[1738825157464,2.14188163,98476.0,98475.0,0.00022407]
[1738825157670,2.15988163,98476.0,98475.0,0.00022407]
[1738825159052,2.66762163,98476.0,98475.0,0.00022407]
[1738825163275,2.69062163,98476.0,98475.0,0.00022407]
[1738825163484,0.938043,98462.0,98444.0,0.08291659]
[1738825163624,1.98448665,98462.0,98444.0,0.08291659]
[1738825163830,1.99191532,98462.0,98444.0,0.08291659]
[1738825164039,2.02356173,98462.0,98444.0,0.08291659]
[1738825164239,3.52356173,98462.0,98444.0,0.08291659]
[1738825164441,3.62606538,98462.0,98444.0,0.08291659]
[1738825164844,3.63506538,98462.0,98444.0,0.08291659]
[1738825166304,3.52356173,98462.0,98444.0,0.08291659]
[1738825166741,3.12013532,98462.0,98444.0,0.08291659]
[1738825166949,3.11113532,98462.0,98444.0,0.08291659]
[1738825167161,3.10213532,98462.0,98444.0,0.08291659]
[1738825167407,3.11113532,98462.0,98444.0,0.08291659]
[1738825167607,3.12013532,98462.0,98444.0,0.08291659]
[1738825167764,3.11113532,98462.0,98444.0,0.08291659]
[1738825167945,3.12013532,98462.0,98444.0,0.08291659]
[1738825168349,3.22263897,98462.0,98444.0,0.08291659]
[1738825169020,3.21363897,98462.0,98444.0,0.08291659]
[1738825169604,3.22263897,98462.0,98444.0,0.08291659]
[1738825169811,3.07326505,98462.0,98444.0,0.08291659]
[1738825170012,3.07326505,98462.0,98444.0,0.23528559]
[1738825170225,3.08226505,98462.0,98444.0,0.08291659]
[1738825170651,3.07213532,98462.0,98444.0,0.23528659]
[1738825171031,3.07213532,98462.0,98444.0,0.08291659]
[1738825174314,3.07213532,98462.0,98444.0,0.23528659]
[1738825174530,2.97213532,98462.0,98445.0,0.152369]
[1738825174733,3.07213532,98462.0,98445.0,0.152369]
[1738825175053,3.07213532,98462.0,98444.0,0.08291659]
[1738825175228,3.07213532,98462.0,98444.0,0.23528659]
[1738825176629,3.06671897,98462.0,98450.0,0.13862619]
[1738825176829,3.07209532,98462.0,98450.0,0.13862619]
[1738825177145,3.07209532,98462.0,98461.0,14.00022428]
[1738825178344,1.00155232,98462.0,98461.0,14.00022428]
[1738825178569,0.89412365,98462.0,98461.0,14.00022428]
[1738825179113,0.88624365,98462.0,98461.0,14.00022428]
[1738825179310,0.89412365,98462.0,98461.0,14.00022428]
[1738825180332,0.88512365,98462.0,98461.0,14.00022428]
[1738825180828,0.87612365,98462.0,98461.0,14.00022428]
[1738825181253,0.88512365,98462.0,98461.0,14.00022428]
[1738825182023,0.89412365,98462.0,98461.0,14.00022428]
[1738825182627,0.87612365,98462.0,98461.0,14.00022428]
[1738825182783,0.89412365,98462.0,98461.0,14.00022428]
[1738825183555,0.88512365,98462.0,98461.0,14.00022428]
[1738825183719,0.87612365,98462.0,98461.0,14.00022428]
[1738825183895,0.89412365,98462.0,98461.0,14.00022428]
[1738825184494,0.90312365,98462.0,98461.0,14.00022428]
[1738825185233,0.89412365,98462.0,98461.0,14.00022428]
[1738825185399,0.89408365,98462.0,98461.0,14.00022428]
[1738825185614,0.90308365,98462.0,98461.0,14.00022428]
[1738825185781,2.38508365,98462.0,98461.0,14.00022428]
[1738825185987,2.39408365,98462.0,98461.0,14.00022428]
[1738825186203,0.89408365,98462.0,98461.0,14.00022428]
[1738825186420,0.88508365,98462.0,98461.0,14.00022428]
[1738825186783,0.89408365,98462.0,98461.0,14.00022428]
[1738825187369,0.73608365,98462.0,98461.0,14.00022428]
[1738825190836,0.73608365,98462.0,98461.0,14.15256828]
[1738825191790,0.73604365,98462.0,98461.0,14.15256828]
[1738825192334,0.73604365,98462.0,98461.0,0.15256828]
[1738825192616,0.74341423,98462.0,98461.0,0.15256828]
[1738825195851,0.64341423,98462.0,98461.0,0.23116828]
[1738825197068,0.64341423,98462.0,98461.0,0.55146828]
[1738825200301,0.64341423,98462.0,98461.0,0.23116828]
[1738825200529,0.96009865,98462.0,98461.0,0.00022428]
[1738825200734,0.89575723,98462.0,98461.0,0.00022428]
[1738825201153,2.47625723,98462.0,98461.0,0.00022428]
[1738825201353,2.62625723,98462.0,98461.0,0.00022428]
[1738825201511,2.61725723,98462.0,98461.0,0.00022428]
[1738825201711,2.70556729,98462.0,98461.0,0.00022428]
[1738825201929,2.71456729,98462.0,98461.0,0.00022428]
[1738825202477,2.62744515,98462.0,98461.0,0.00022428]
[1738825202887,2.61844515,98462.0,98461.0,0.00022428]
[1738825203063,2.62744515,98462.0,98461.0,0.00022428]
[1738825203480,2.63671723,98462.0,98461.0,0.00022428]
[1738825203942,2.64571723,98462.0,98461.0,0.00022428]
[1738825204110,2.74822088,98462.0,98461.0,0.00022428]
[1738825204312,2.74822088,98462.0,98461.0,4.198e-05]
[1738825204910,2.64571723,98462.0,98461.0,4.198e-05]
[1738825205792,2.63671723,98462.0,98461.0,4.198e-05]
[1738825206008,2.62771723,98462.0,98461.0,4.198e-05]
[1738825206248,2.63671723,98462.0,98461.0,4.198e-05]
[1738825207453,2.72441723,98462.0,98461.0,4.198e-05]
[1738825207669,2.83592088,98462.0,98461.0,4.198e-05]
[1738825207917,2.73341723,98462.0,98461.0,4.198e-05]
[1738825208269,2.72341723,98462.0,98461.0,4.198e-05]
[1738825211861,2.64571723,98462.0,98461.0,4.198e-05]
[1738825212740,2.64567723,98462.0,98461.0,4.198e-05]
[1738825216752,2.65567723,98462.0,98461.0,4.198e-05]
[1738825216979,2.75818088,98462.0,98461.0,4.198e-05]
[1738825217159,2.92152065,98462.0,98461.0,4.198e-05]
[1738825217371,2.95452065,98462.0,98461.0,4.198e-05]
[1738825217819,2.95452065,98462.0,98461.0,9.8e-07]
[1738825217820,3.06152065,98462.0,98461.0,9.8e-07]
[1738825218173,2.95152065,98462.0,98461.0,9.8e-07]
[1738825218378,2.849017,98462.0,98461.0,9.8e-07]
[1738825218600,3.250017,98462.0,98461.0,9.8e-07]
[1738825219422,3.143017,98462.0,98461.0,9.8e-07]
[1738825219844,3.134017,98462.0,98461.0,9.8e-07]
[1738825220217,3.250017,98462.0,98461.0,9.8e-07]
[1738825220420,3.35252065,98462.0,98461.0,9.8e-07]
[1738825220832,3.36152065,98462.0,98461.0,9.8e-07]
[1738825221036,3.37052065,98462.0,98461.0,9.8e-07]
[1738825221437,3.36152065,98462.0,98461.0,9.8e-07]
[1738825221805,3.37052065,98462.0,98461.0,9.8e-07]
[1738825222015,3.35252065,98462.0,98461.0,9.8e-07]
[1738825222235,3.34352065,98462.0,98461.0,9.8e-07]
[1738825222461,3.35252065,98462.0,98461.0,9.8e-07]
[1738825223079,3.36152065,98462.0,98461.0,9.8e-07]
[1738825223281,3.35252065,98462.0,98461.0,9.8e-07]
[1738825223726,3.36152065,98462.0,98461.0,9.8e-07]
[1738825224291,3.36162745,98462.0,98461.0,9.8e-07]
[1738825224638,3.35262745,98462.0,98461.0,9.8e-07]
[1738825224860,3.36162745,98462.0,98461.0,9.8e-07]
[1738825225622,3.35390745,98462.0,98461.0,9.8e-07]
[1738825225822,3.36162745,98462.0,98461.0,9.8e-07]
[1738825226429,3.34362745,98462.0,98461.0,9.8e-07]
[1738825226820,3.67772745,98462.0,98461.0,9.8e-07]
[1738825227025,3.4515038,98462.0,98461.0,9.8e-07]
[1738825227196,3.4415038,98462.0,98461.0,9.8e-07]
[1738825227399,3.4682238,98462.0,98461.0,9.8e-07]
[1738825227809,3.4772238,98462.0,98461.0,9.8e-07]
[1738825228263,3.4682238,98462.0,98461.0,9.8e-07]
[1738825228474,3.57072745,98462.0,98461.0,9.8e-07]
[1738825228681,3.56972745,98462.0,98461.0,9.8e-07]
[1738825228887,3.57072745,98462.0,98461.0,9.8e-07]
[1738825229056,3.57972745,98462.0,98461.0,9.8e-07]
[1738825229256,3.57072745,98462.0,98461.0,9.8e-07]
[1738825229758,3.57972745,98462.0,98461.0,9.8e-07]
[1738825231416,3.3610238,98462.0,98461.0,9.8e-07]
[1738825231755,3.3710238,98462.0,98461.0,9.8e-07]
[1738825231956,3.3940238,98462.0,98461.0,9.8e-07]
[1738825234367,3.4761238,98462.0,98461.0,9.8e-07]
[1738825235066,3.4671238,98462.0,98461.0,9.8e-07]
[1738825235281,3.56190745,98462.0,98461.0,9.8e-07]
[1738825235495,3.56958745,98462.0,98461.0,9.8e-07]
[1738825235704,3.57858745,98462.0,98461.0,9.8e-07]
[1738825236582,3.56958745,98462.0,98461.0,9.8e-07]
[1738825236802,3.57858745,98462.0,98461.0,9.8e-07]
[1738825237026,0.2,98433.0,98432.0,7.67474092]
[1738825237255,0.81792365,98433.0,98432.0,7.67474092]
[1738825237489,0.96792365,98433.0,98432.0,7.59314092]
[1738825238367,2.47692365,98433.0,98432.0,7.59322101]
[1738825238875,2.48351255,98433.0,98432.0,7.59322101]
[1738825239358,2.49251255,98433.0,98432.0,7.59322101]
[1738825239592,2.51325548,98433.0,98432.0,7.59322101]
[1738825240319,2.51329548,98433.0,98432.0,7.59322101]
[1738825240553,2.49255255,98433.0,98432.0,7.67042101]
[1738825242866,2.5950562,98433.0,98432.0,7.67042101]
[1738825244107,2.49255255,98433.0,98432.0,7.67042101]
[1738825246948,2.49255255,98433.0,98432.0,7.67064529]
[1738825249047,2.48483255,98433.0,98432.0,7.67064529]
[1738825249250,2.34255255,98433.0,98432.0,7.67064529]
[1738825254237,2.34255255,98433.0,98432.0,7.59344529]
[1738825254446,2.58061617,98433.0,98432.0,7.59344529]
[1738825254865,2.61233385,98433.0,98432.0,7.57530685]
[1738825255076,2.58061617,98433.0,98432.0,7.57530685]
[1738825255699,2.57161617,98433.0,98432.0,7.57530685]
[1738825256143,2.48355255,98433.0,98432.0,7.57530685]
[1738825256360,2.47583255,98433.0,98432.0,7.57530685]
[1738825256604,2.49251255,98433.0,98432.0,7.57530685]
[1738825257324,2.48351255,98433.0,98432.0,7.57530685]
[1738825257730,2.49251255,98433.0,98432.0,7.57530685]
[1738825258343,2.48351255,98433.0,98432.0,7.57530685]
[1738825258751,2.56102392,98433.0,98432.0,7.57530685]
[1738825258950,2.55213072,98433.0,98432.0,7.57530685]
[1738825259384,2.56113072,98433.0,98432.0,7.57530685]
[1738825259624,2.49261935,98433.0,98432.0,7.57530685]
[1738825259871,2.49261935,98433.0,98432.0,7.65280685]
[1738825260821,2.49261935,98433.0,98432.0,7.57530685]
[1738825265050,2.52433166,98433.0,98432.0,7.57530685]
[1738825265795,2.82433166,98433.0,98432.0,7.57530685]
[1738825266068,2.92683531,98433.0,98432.0,7.57530685]
[1738825268522,2.52433166,98433.0,98432.0,7.57530685]
[1738825268806,2.42433166,98433.0,98432.0,7.57530685]
[1738825269013,2.52433166,98433.0,98432.0,7.57530685]
[1738825269446,2.51665166,98433.0,98432.0,7.57530685]
[1738825269655,2.52433166,98433.0,98432.0,7.57530685]
[1738825274100,2.62683531,98433.0,98432.0,7.57530685]
[1738825275489,2.53433166,98433.0,98432.0,7.53466885]
[1738825275717,2.54433166,98433.0,98432.0,7.49403085]
[1738825275949,2.54433166,98433.0,98432.0,7.43307385]
[1738825277550,2.53433166,98433.0,98432.0,7.43307385]
[1738825278171,2.64683531,98433.0,98432.0,7.43307385]
[1738825278383,2.615123,98433.0,98432.0,7.43307385]
[1738825278806,2.54433466,98433.0,98432.0,7.43307385]
[1738825279225,2.51261935,98433.0,98432.0,7.43307385]
[1738825280029,2.54433299,98433.0,98432.0,7.43307385]
[1738825280365,2.51261935,98433.0,98432.0,7.43307385]
[1738825280570,2.54433121,98433.0,98432.0,7.43307385]
[1738825280785,2.57552247,98433.0,98432.0,7.43307385]
[1738825281009,2.54381061,98433.0,98432.0,7.43307385]
[1738825281456,2.53381061,98433.0,98432.0,7.43307385]
[1738825281589,2.54381061,98433.0,98432.0,7.43307385]
[1738825282203,2.54381061,98433.0,98432.0,7.39886236]
[1738825283311,2.53481061,98433.0,98432.0,7.39886236]
[1738825283532,2.54381061,98433.0,98432.0,7.39886236]
[1738825284186,2.56681061,98433.0,98432.0,7.37842236]
[1738825284691,2.92361911,98433.0,98432.0,7.37842236]
[1738825284850,3.19561911,98433.0,98432.0,7.37842236]
[1738825285068,2.80461911,98433.0,98432.0,7.37842236]
[1738825285466,3.19561911,98433.0,98432.0,7.37842236]
[1738825285818,2.81361911,98433.0,98432.0,7.37842236]
[1738825286172,3.20461911,98433.0,98432.0,7.37842236]
[1738825286378,3.21361911,98433.0,98432.0,7.37842236]
[1738825286584,2.80461911,98433.0,98432.0,7.37842236]
[1738825286768,3.20461911,98433.0,98432.0,7.37842236]
[1738825286965,3.15042785,98433.0,98432.0,7.37842236]
[1738825287374,2.75042785,98433.0,98432.0,7.37842236]
[1738825287596,3.16042785,98433.0,98432.0,7.37842236]
[1738825288205,3.15142785,98433.0,98432.0,7.37842236]
[1738825288409,3.16942785,98433.0,98432.0,7.37842236]
[1738825288604,3.2297485,98433.0,98432.0,7.37842236]
[1738825288782,3.2117485,98433.0,98432.0,7.37842236]
[1738825288982,3.2207485,98433.0,98432.0,7.37842236]
[1738825289183,3.2297485,98433.0,98432.0,7.37842236]
[1738825289453,3.2207485,98433.0,98432.0,7.37842236]
[1738825289661,3.2297485,98433.0,98432.0,7.37842236]
[1738825291053,3.2207485,98433.0,98432.0,7.37842236]
[1738825291314,3.2297485,98433.0,98432.0,7.37842236]
[1738825292080,3.3821355,98433.0,98432.0,7.37842236]
[1738825293221,3.4891355,98433.0,98432.0,7.37842236]
[1738825294186,3.5874955,98433.0,98432.0,7.37842236]
[1738825294400,3.5784955,98433.0,98432.0,7.37842236]
[1738825294613,3.6104955,98433.0,98432.0,7.29714636]
[1738825294822,2.1194955,98433.0,98432.0,1.23612161]
[1738825295025,2.077787,98433.0,98432.0,1.23612161]
[1738825295260,2.087787,98433.0,98432.0,1.23612161]
[1738825295459,2.077787,98433.0,98432.0,1.23612161]
[1738825295665,2.068787,98433.0,98432.0,1.23612161]
[1738825295853,2.069787,98433.0,98432.0,1.23612161]
[1738825296052,2.00846635,98433.0,98432.0,1.23612161]
[1738825296267,1.61746635,98433.0,98432.0,1.23612161]
[1738825296470,2.01746635,98433.0,98432.0,1.23612161]
[1738825296673,2.00746635,98433.0,98432.0,1.23612161]
[1738825296906,2.1084408,98433.0,98432.0,1.23612161]
[1738825297220,2.1094408,98433.0,98432.0,1.23612161]
[1738825297422,2.1004408,98433.0,98432.0,1.23612161]
[1738825297631,2.1184408,98433.0,98432.0,1.23612161]
[1738825297960,2.12067298,98433.0,98432.0,1.23612161]
[1738825298157,1.99769853,98433.0,98432.0,1.23612161]
[1738825298591,2.00669853,98433.0,98432.0,1.23612161]
[1738825298941,1.46401853,98433.0,98432.0,1.23612161]
[1738825299154,1.47069853,98433.0,98432.0,1.23612161]
[1738825299357,1.87969853,98433.0,98432.0,1.23612161]
[1738825300034,1.47969853,98433.0,98432.0,1.23612161]
[1738825300215,1.87969853,98433.0,98432.0,1.23612161]
[1738825300991,1.55459853,98433.0,98432.0,1.23612161]
[1738825303561,1.25459853,98433.0,98432.0,1.23612161]
[1738825303761,1.15459853,98433.0,98432.0,1.23612161]
[1738825303960,1.25459853,98433.0,98432.0,1.23612161]
[1738825304564,1.15459853,98433.0,98432.0,1.23612161]
[1738825304772,1.24559853,98433.0,98432.0,1.23612161]
[1738825304972,1.23659853,98433.0,98432.0,1.23612161]
[1738825305189,1.24559853,98433.0,98432.0,1.23612161]
[1738825305393,1.25459853,98433.0,98432.0,1.23612161]
[1738825305640,1.33910218,98433.0,98432.0,1.23612161]
[1738825306077,1.34810218,98433.0,98432.0,1.23612161]
[1738825306983,1.35710218,98433.0,98432.0,1.23612161]
[1738825307790,1.34942218,98433.0,98432.0,1.23612161]
[1738825307998,1.35710218,98433.0,98432.0,1.23612161]
[1738825309028,1.85710218,98433.0,98432.0,1.23612161]
[1738825309438,1.86710218,98433.0,98432.0,1.23612161]
[1738825310637,1.76459853,98433.0,98432.0,1.23612161]
[1738825311945,1.77459853,98433.0,98432.0,1.23612161]
[1738825312076,1.76459853,98433.0,98432.0,1.23612161]
[1738825312284,1.75691853,98433.0,98432.0,1.23612161]
[1738825312537,1.75559853,98433.0,98432.0,1.23612161]
[1738825312730,1.82723208,98433.0,98432.0,1.23612161]
[1738825313295,1.81823208,98433.0,98432.0,1.23612161]
[1738825313516,1.82723208,98433.0,98432.0,1.23612161]
[1738825313906,1.83623208,98433.0,98432.0,1.23612161]
[1738825315041,2.13623208,98433.0,98432.0,1.23612161]
[1738825315385,2.06459853,98433.0,98432.0,1.23612161]
[1738825316682,2.05459853,98433.0,98432.0,1.23612161]
[1738825316897,2.06459853,98433.0,98432.0,1.23612161]
[1738825317451,2.05459853,98433.0,98432.0,1.23612161]
[1738825317670,2.05455853,98433.0,98432.0,1.23612161]
[1738825318179,2.06455853,98433.0,98432.0,1.23612161]
[1738825319380,2.05691853,98433.0,98432.0,1.23612161]
[1738825319581,2.06455853,98433.0,98432.0,1.23612161]
[1738825321812,2.05455853,98433.0,98432.0,1.23612161]
[1738825321981,2.06455853,98433.0,98432.0,1.23612161]
[1738825322185,2.05455853,98433.0,98432.0,1.23612161]
[1738825325220,2.04691853,98433.0,98432.0,1.23612161]
[1738825325458,1.75455853,98433.0,98432.0,1.23612161]
[1738825326246,1.84833597,98433.0,98432.0,1.23612161]
[1738825328426,1.75455853,98433.0,98432.0,1.23612161]
[1738825329866,2.05455853,98433.0,98432.0,1.23612161]
[1738825334282,1.74691853,98433.0,98432.0,1.31792161]
[1738825334498,1.75459853,98433.0,98432.0,1.36482161]
[1738825338141,1.75459853,98433.0,98432.0,1.23612161]
[1738825339107,1.75459853,98433.0,98432.0,1.31282161]
[1738825339648,1.82690977,98433.0,98432.0,1.31282161]
[1738825340059,1.75459853,98433.0,98432.0,1.31282161]
[1738825341653,1.75459853,98433.0,98432.0,0.07700437]
[1738825342183,1.64723853,98433.0,98432.0,0.07700437]
[1738825352264,1.64719853,98433.0,98432.0,0.07700437]
[1738825353070,1.49719853,98433.0,98432.0,0.07700437]
[1738825353272,1.49715853,98433.0,98432.0,0.12270437]
[1738825353793,1.39715853,98433.0,98432.0,0.12270437]
[1738825353989,1.38955853,98433.0,98432.0,0.12270437]
[1738825354334,1.39715853,98433.0,98432.0,0.12270437]
[1738825354576,1.24477153,98433.0,98432.0,0.12270437]
[1738825354785,1.24477153,98433.0,98432.0,0.27509337]
[1738825354995,1.24477153,98433.0,98432.0,0.12270437]
[1738825356044,1.23577153,98433.0,98432.0,0.12270437]
[1738825356267,1.22677153,98433.0,98432.0,0.12270437]
[1738825356486,1.23577153,98433.0,98432.0,0.12270437]
[1738825356690,1.24477153,98433.0,98432.0,0.12270437]
[1738825356895,1.39715853,98433.0,98432.0,0.12270437]
[1738825357725,1.24477153,98433.0,98432.0,0.12270437]
[1738825358082,1.39715853,98433.0,98432.0,0.12270437]
[1738825361302,1.24477153,98433.0,98432.0,0.12270437]
[1738825363460,1.23717153,98433.0,98432.0,0.12270437]
[1738825363663,1.39715853,98433.0,98432.0,0.12270437]
[1738825365812,1.38661185,98433.0,98432.0,0.12270437]
[1738825366006,1.39421185,98433.0,98432.0,0.12270437]
[1738825366801,1.39421185,98433.0,98432.0,0.07700437]
[1738825368236,1.24182485,98433.0,98432.0,0.07700437]
[1738825368778,1.39421185,98433.0,98432.0,0.07700437]
[1738825369794,1.24182485,98433.0,98432.0,0.07700437]
[1738825372583,1.24182485,98433.0,98432.0,0.22939337]
[1738825376272,1.24182485,98433.0,98432.0,0.07700437]
[1738825377125,1.24178485,98433.0,98432.0,0.07700437]
[1738825377335,1.39417185,98433.0,98432.0,0.07700437]
[1738825377548,1.24178485,98433.0,98432.0,0.07700437]
[1738825378495,1.24178485,98433.0,98432.0,0.22939337]
[1738825379277,1.24178485,98433.0,98432.0,0.07700437]
[1738825382632,1.24178485,98433.0,98432.0,0.22939337]
[1738825383014,1.24178485,98433.0,98432.0,0.07700437]
[1738825390992,1.39417185,98433.0,98432.0,0.07700437]
[1738825391199,1.24178485,98433.0,98432.0,0.07700437]
[1738825393115,1.39417185,98433.0,98432.0,0.00030437]
[1738825395297,1.41321976,98433.0,98432.0,0.00030437]
[1738825396421,1.49237976,98433.0,98432.0,0.00030437]
[1738825399488,1.50244813,98433.0,98432.0,0.00030437]
[1738825399691,1.65244813,98433.0,98432.0,0.00030437]
[1738825399923,1.69954813,98433.0,98432.0,0.00030437]
[1738825401756,1.69054813,98433.0,98432.0,0.00030437]
[1738825402065,1.79305178,98433.0,98432.0,0.00030437]
[1738825402283,1.80205178,98433.0,98432.0,0.00030437]
[1738825402667,1.78405178,98433.0,98432.0,0.00030437]
[1738825402887,1.80205178,98433.0,98432.0,0.00030437]
[1738825404832,1.81205178,98433.0,98432.0,0.00030437]
[1738825406206,1.83505178,98433.0,98432.0,0.00030437]
[1738825407783,1.73254813,98433.0,98432.0,0.00030437]
[1738825408172,2.23954813,98433.0,98432.0,0.00030437]
[1738825408379,2.13254813,98433.0,98432.0,0.00030437]
[1738825408516,1.73254813,98433.0,98432.0,0.00030437]
[1738825408724,2.13254813,98433.0,98432.0,0.00030437]
[1738825409827,1.73254813,98433.0,98432.0,0.00030437]
[1738825410022,2.13254813,98433.0,98432.0,0.00030437]
[1738825410458,1.73254813,98433.0,98432.0,0.00030437]
[1738825410671,2.13254813,98433.0,98432.0,0.00030437]
[1738825410918,1.73253178,98433.0,98432.0,0.00030437]
[1738825411122,2.13253178,98433.0,98432.0,0.00030437]
[1738825411319,2.23503543,98433.0,98432.0,0.00030437]
[1738825412651,1.81203543,98433.0,98432.0,0.00030437]
[1738825412847,2.10953178,98433.0,98432.0,0.00030437]
[1738825414039,2.57463178,98433.0,98432.0,0.00030437]
[1738825414233,2.68199178,98433.0,98432.0,0.00030437]
[1738825415303,2.68199178,98433.0,98432.0,1e-08]
[1738825415460,2.78449543,98433.0,98432.0,1e-08]
[1738825418693,2.81488518,98433.0,98432.0,1e-08]
[1738825422396,2.70788518,98433.0,98432.0,1e-08]
[1738825422600,2.67749543,98433.0,98432.0,1e-08]
[1738825425240,0.65,98419.0,98413.0,0.00022407]
[1738825425426,1.83885265,98419.0,98413.0,0.00022407]
[1738825425612,1.84468216,98419.0,98413.0,0.00022407]
[1738825426375,1.88784417,98419.0,98413.0,0.00022407]
[1738825426795,2.09822531,98419.0,98418.0,7e-08]
[1738825426978,2.22422531,98419.0,98418.0,7e-08]
[1738825427333,2.23322531,98419.0,98418.0,7e-08]
[1738825427723,2.21522531,98419.0,98418.0,7e-08]
[1738825428077,2.12765748,98419.0,98418.0,7e-08]
[1738825428256,2.46175748,98419.0,98418.0,7e-08]
[1738825428667,2.56915748,98419.0,98418.0,7e-08]
[1738825428868,2.56015748,98419.0,98418.0,7e-08]
[1738825429314,0.65,98393.0,98392.0,0.01]
[1738825429514,1.58821265,98393.0,98392.0,0.01]
[1738825429796,1.5940421,98393.0,98392.0,0.01]
[1738825429938,1.6170421,98393.0,98392.0,0.00981772]
[1738825430356,1.66652324,98393.0,98392.0,0.00981772]
[1738825430779,1.67556967,98393.0,98392.0,0.00981772]
[1738825431529,1.68456967,98393.0,98392.0,0.00981772]
[1738825432739,1.65156967,98393.0,98392.0,0.00981772]
[1738825433178,1.67204131,98393.0,98392.0,0.00981772]
[1738825433572,1.70090882,98393.0,98392.0,0.00981772]
[1738825433763,1.68211414,98393.0,98392.0,0.00981772]
[1738825438327,1.38211414,98393.0,98392.0,0.00981772]
[1738825438714,1.39482868,98393.0,98392.0,0.00981772]
[1738825439312,1.41782868,98393.0,98392.0,0.00981772]
[1738825439532,0.802474,98377.0,98376.0,0.00022407]